[Event "FIDE U16 Olympiad_boards_1-80"]
[Site "Eindhoven, Netherlands"]
[Date "2023.08.13"]
[Round "1.77"]
[White "Kanov, Nikola"]
[Black "Kannappan, Thanneermalai"]
[Result "1-0"]
[TimeControl "2700+10"]
[WhiteElo "2283"]
[BlackElo "1713"]

1. e4 {[%clk 00:45:17]} {[%emt 00:00:01]} c5 {[%clk 00:45:14]} {[%emt
00:00:07]} 2. Nf3 {[%clk 00:45:22]} {[%emt 00:00:05]} d6 {[%clk 00:45:22]}
{[%emt 00:00:02]} 3. d4 {[%clk 00:45:26]} {[%emt 00:00:06]} cxd4 {[%clk
00:45:27]} {[%emt 00:00:05]} 4. Nxd4 {[%clk 00:45:31]} {[%emt 00:00:04]} Nf6
{[%clk 00:45:33]} {[%emt 00:00:03]} 5. Nc3 {[%clk 00:45:34]} {[%emt 00:00:08]}
g6 {[%clk 00:45:32]} {[%emt 00:00:11]} 6. f3 {[%clk 00:44:15]} {[%emt
00:01:29]} Bg7 {[%clk 00:45:28]} {[%emt 00:00:14]} 7. Be3 {[%clk 00:44:13]}
{[%emt 00:00:12]} Nc6 {[%clk 00:45:35]} {[%emt 00:00:03]} 8. Bc4 {[%clk
00:42:45]} {[%emt 00:01:39]} O-O {[%clk 00:45:09]} {[%emt 00:00:36]} 9. Qd2
{[%clk 00:39:55]} {[%emt 00:03:00]} Bd7 {[%clk 00:44:48]} {[%emt 00:00:31]} 10.
Bb3 {[%clk 00:39:05]} {[%emt 00:01:00]} Rc8 {[%clk 00:44:22]} {[%emt 00:00:36]}
11. O-O-O {[%clk 00:38:24]} {[%emt 00:00:50]} Ne5 {[%clk 00:44:24]} {[%emt
00:00:08]} 12. Kb1 {[%clk 00:36:30]} {[%emt 00:02:05]} Nc4 {[%clk 00:44:29]}
{[%emt 00:00:05]} 13. Bxc4 {[%clk 00:34:19]} {[%emt 00:02:21]} Rxc4 {[%clk
00:44:35]} {[%emt 00:00:03]} 14. h4 {[%clk 00:34:09]} {[%emt 00:00:21]} h5
{[%clk 00:43:58]} {[%emt 00:00:47]} 15. g4 {[%clk 00:29:43]} {[%emt 00:04:36]}
hxg4 {[%clk 00:35:11]} {[%emt 00:08:57]} 16. h5 {[%clk 00:28:57]} {[%emt
00:00:56]} Nxh5 {[%clk 00:33:02]} {[%emt 00:02:19]} 17. fxg4 {[%clk 00:27:05]}
{[%emt 00:02:02]} Bxg4 {[%clk 00:33:04]} {[%emt 00:00:08]} 18. Rdg1 {[%clk
00:25:04]} {[%emt 00:02:10]} Qc8 {[%clk 00:33:06]} {[%emt 00:00:08]} 19. Nd5
{[%clk 00:22:27]} {[%emt 00:02:47]} Re8 {[%clk 00:23:13]} {[%emt 00:10:04]} 20.
b3 {[%clk 00:22:17]} {[%emt 00:00:21]} e5 {[%clk 00:20:42]} {[%emt 00:02:40]}
21. bxc4 {[%clk 00:20:45]} {[%emt 00:01:42]} exd4 {[%clk 00:20:51]} 22. Bxd4
{[%clk 00:20:25]} {[%emt 00:00:31]} Rxe4 {[%clk 00:16:42]} {[%emt 00:04:18]} 23.
Bxg7 {[%clk 00:20:14]} {[%emt 00:00:20]} Kxg7 {[%clk 00:16:45]} {[%emt
00:00:07]} 24. Qc3+ {[%clk 00:15:03]} {[%emt 00:05:22]} Re5 {[%clk 00:16:54]}
{[%emt 00:00:01]} 25. Rh4 {[%clk 00:09:31]} {[%emt 00:05:41]} f5 {[%clk
00:12:22]} {[%emt 00:04:43]} 26. Re1 {[%clk 00:06:50]} {[%emt 00:02:51]} Qe6
{[%clk 00:11:45]} {[%emt 00:00:46]} 27. Rhh1 {[%clk 00:06:17]} {[%emt
00:00:44]} Nf6 {[%clk 00:09:29]} {[%emt 00:02:26]} 28. Nf4 {[%clk 00:05:28]}
{[%emt 00:00:58]} Qe7 {[%clk 00:07:50]} {[%emt 00:01:50]} 29. Nd3 {[%clk
00:05:14]} {[%emt 00:00:23]} Re3 {[%clk 00:04:50]} {[%emt 00:03:11]} 30. Rxe3
{[%clk 00:04:15]} {[%emt 00:01:09]} Qxe3 {[%clk 00:04:58]} {[%emt 00:00:02]} 31.
Re1 {[%clk 00:04:24]} {[%emt 00:00:01]} Qb6+ {[%clk 00:05:07]} {[%emt
00:00:01]} 32. Ka1 {[%clk 00:04:31]} {[%emt 00:00:03]} Kf7 {[%clk 00:04:15]}
{[%emt 00:01:02]} 33. c5 {[%clk 00:04:07]} {[%emt 00:00:34]} Qc7 {[%clk
00:02:26]} {[%emt 00:01:59]} 34. Qb3+ {[%clk 00:03:15]} {[%emt 00:01:02]} d5
{[%clk 00:02:18]} {[%emt 00:00:18]} 35. Ne5+ {[%clk 00:02:49]} {[%emt
00:00:36]} Kg7 {[%clk 00:02:28]} {[%emt 00:00:01]} 36. Qc3 {[%clk 00:02:25]}
{[%emt 00:00:33]} Bh5 {[%clk 00:01:40]} {[%emt 00:00:58]} 37. c6 {[%clk
00:01:51]} {[%emt 00:00:44]} bxc6 {[%clk 00:01:46]} {[%emt 00:00:04]} 38. Nxc6
{[%clk 00:01:56]} {[%emt 00:00:05]} Qd6 {[%clk 00:01:01]} {[%emt 00:00:55]} 39.
Nd4 {[%clk 00:01:58]} {[%emt 00:00:07]} Kh6 {[%clk 00:00:26]} {[%emt 00:00:46]}
40. Re6 {[%clk 00:01:41]} {[%emt 00:00:27]} Qd8 {[%clk 00:00:36]} {[%emt
00:00:01]} 41. Qe3+ {[%clk 00:01:04]} {[%emt 00:00:46]} Kg7 {[%clk 00:00:22]}
{[%emt 00:00:25]} 42. Re7+ {[%clk 00:00:59]} {[%emt 00:00:15]} Kf8 {[%clk
00:00:30]} 43. Rxa7 {[%clk 00:00:48]} {[%emt 00:00:21]} Qd6 {[%clk 00:00:23]}
{[%emt 00:00:17]} 44. Qh6+ {[%clk 00:00:51]} {[%emt 00:00:07]} Ke8 {[%clk
00:00:33]} 45. Qh8+ {[%clk 00:00:59]} {[%emt 00:00:02]} Qf8 {[%clk 00:00:41]}
{[%emt 00:00:01]} 46. Ra8+ {[%clk 00:01:09]} {[%emt 00:00:02]} 1-0

[Event "FIDE U16 Olympiad_boards_1-80"]
[Site "Eindhoven, Netherlands"]
[Date "2023.08.13"]
[Round "1.78"]
[White "Poon, Pak Yu"]
[Black "Georgiev, Konstantin"]
[Result "1-0"]
[TimeControl "2700+10"]
[WhiteElo "1268"]
[BlackElo "1995"]

1. e4 {[%clk 00:45:18]} {[%emt 00:00:02]} Nc6 {[%clk 00:45:00]} {[%emt
00:00:21]} 2. d4 {[%clk 00:45:02]} {[%emt 00:00:26]} d5 {[%clk 00:45:07]}
{[%emt 00:00:02]} 3. e5 {[%clk 00:44:34]} {[%emt 00:00:38]} Bf5 {[%clk
00:44:50]} {[%emt 00:00:28]} 4. Nf3 {[%clk 00:36:50]} {[%emt 00:07:54]} e6
{[%clk 00:44:54]} {[%emt 00:00:05]} 5. Be2 {[%clk 00:36:07]} {[%emt 00:00:53]}
a6 {[%clk 00:42:52]} {[%emt 00:02:12]} 6. O-O {[%clk 00:35:17]} {[%emt
00:01:00]} Nb4 {[%clk 00:38:50]} {[%emt 00:04:12]} 7. Na3 {[%clk 00:34:06]}
{[%emt 00:01:21]} c5 {[%clk 00:34:12]} {[%emt 00:04:48]} 8. Bg5 {[%clk
00:31:25]} {[%emt 00:02:51]} Qd7 {[%clk 00:32:55]} {[%emt 00:01:27]} 9. c4
{[%clk 00:31:07]} {[%emt 00:00:29]} dxc4 {[%clk 00:19:02]} {[%emt 00:14:02]} 10.
Nxc4 {[%clk 00:28:52]} {[%emt 00:02:25]} Nd5 {[%clk 00:19:08]} {[%emt
00:00:04]} 11. dxc5 {[%clk 00:27:12]} {[%emt 00:01:51]} Bxc5 {[%clk 00:18:59]}
{[%emt 00:00:18]} 12. Nd4 {[%clk 00:27:19]} {[%emt 00:00:03]} h6 {[%clk
00:05:44]} {[%emt 00:13:26]} 13. Nxf5 {[%clk 00:27:19]} {[%emt 00:00:10]} exf5
{[%clk 00:05:47]} {[%emt 00:00:06]} 14. e6 {[%clk 00:26:28]} {[%emt 00:01:01]}
Qxe6 {[%clk 00:04:00]} {[%emt 00:01:57]} 15. Bf3 {[%clk 00:26:03]} {[%emt
00:00:36]} Nde7 {[%clk 00:04:00]} {[%emt 00:00:10]} 16. Bxe7 {[%clk 00:25:13]}
{[%emt 00:00:59]} Nxe7 {[%clk 00:03:41]} {[%emt 00:00:29]} 17. Bxb7 {[%clk
00:25:04]} {[%emt 00:00:19]} Rd8 {[%clk 00:02:14]} {[%emt 00:01:38]} 18. Qa4+
{[%clk 00:25:08]} {[%emt 00:00:05]} Qd7 {[%clk 00:02:22]} {[%emt 00:00:02]} 19.
Qxd7+ {[%clk 00:25:04]} {[%emt 00:00:15]} Rxd7 {[%clk 00:02:29]} {[%emt
00:00:03]} 20. Bxa6 {[%clk 00:25:09]} {[%emt 00:00:04]} O-O {[%clk 00:02:36]}
{[%emt 00:00:03]} 21. Rfe1 {[%clk 00:23:07]} {[%emt 00:02:12]} Rb8 {[%clk
00:02:10]} {[%emt 00:00:36]} 22. a3 {[%clk 00:20:28]} {[%emt 00:02:49]} Nd5
{[%clk 00:01:16]} {[%emt 00:01:04]} 23. Rad1 {[%clk 00:19:08]} {[%emt
00:01:30]} Rdd8 {[%clk 00:00:44]} {[%emt 00:00:42]} 24. b4 {[%clk 00:19:01]}
{[%emt 00:00:17]} Bf8 {[%clk 00:00:39]} {[%emt 00:00:16]} 25. Ne5 {[%clk
00:18:43]} {[%emt 00:00:28]} Nc3 {[%clk 00:00:18]} {[%emt 00:00:30]} 26. Rxd8
{[%clk 00:18:39]} {[%emt 00:00:13]} Rxd8 {[%clk 00:00:27]} {[%emt 00:00:02]} 27.
Bc4 {[%clk 00:18:42]} {[%emt 00:00:08]} Rd2 {[%clk 00:00:17]} {[%emt 00:00:19]}
28. Bxf7+ {[%clk 00:18:28]} {[%emt 00:00:24]} Kh7 {[%clk 00:00:26]} {[%emt
00:00:02]} 29. Bg6+ {[%clk 00:17:39]} {[%emt 00:00:58]} Kg8 {[%clk 00:00:35]}
30. Bxf5 {[%clk 00:17:43]} {[%emt 00:00:06]} g5 {[%clk 00:00:26]} {[%emt
00:00:20]} 31. g3 {[%clk 00:17:33]} {[%emt 00:00:19]} Ne2+ {[%clk 00:00:29]}
{[%emt 00:00:07]} 32. Kg2 {[%clk 00:17:21]} {[%emt 00:00:22]} Nd4 {[%clk
00:00:12]} {[%emt 00:00:27]} 33. Bb1 {[%clk 00:15:52]} {[%emt 00:01:39]} Nb5
{[%clk 00:00:20]} {[%emt 00:00:03]} 34. Nc4 {[%clk 00:14:59]} {[%emt 00:01:03]}
Rd4 {[%clk 00:00:28]} {[%emt 00:00:01]} 35. Ba2 {[%clk 00:14:57]} {[%emt
00:00:11]} Kg7 {[%clk 00:00:37]} {[%emt 00:00:02]} 36. Re5 {[%clk 00:13:45]}
{[%emt 00:01:21]} Nc3 {[%clk 00:00:42]} {[%emt 00:00:06]} 37. Bb3 {[%clk
00:13:54]} {[%emt 00:00:01]} Ne4 {[%clk 00:00:17]} {[%emt 00:00:35]} 38. Ne3
{[%clk 00:13:49]} {[%emt 00:00:15]} Rd3 {[%clk 00:00:21]} {[%emt 00:00:06]} 39.
Bc2 {[%clk 00:13:51]} {[%emt 00:00:08]} Rxe3 {[%clk 00:00:19]} {[%emt
00:00:12]} 40. fxe3 {[%clk 00:13:59]} {[%emt 00:00:02]} Nc3 {[%clk 00:00:27]}
{[%emt 00:00:02]} 41. Kf3 {[%clk 00:13:43]} {[%emt 00:00:26]} Bd6 {[%clk
00:00:27]} {[%emt 00:00:10]} 42. Re6 {[%clk 00:13:51]} {[%emt 00:00:02]} Bf8
{[%clk 00:00:24]} {[%emt 00:00:13]} 43. Rc6 {[%clk 00:13:45]} {[%emt 00:00:16]}
Nd5 {[%clk 00:00:31]} {[%emt 00:00:02]} 44. e4 {[%clk 00:13:50]} {[%emt
00:00:06]} 1-0

[Event "FIDE U16 Olympiad_boards_1-80"]
[Site "Eindhoven, Netherlands"]
[Date "2023.08.13"]
[Round "1.79"]
[White "Todev, Simeon"]
[Black "Li, Joy Ching"]
[Result "1-0"]
[TimeControl "2700+10"]
[WhiteElo "1932"]
[BlackElo "1401"]

1. e4 {[%clk 00:45:17]} {[%emt 00:00:03]} c5 {[%clk 00:45:17]} {[%emt
00:00:04]} 2. Nf3 {[%clk 00:45:19]} {[%emt 00:00:07]} g6 {[%clk 00:45:22]}
{[%emt 00:00:05]} 3. c3 {[%clk 00:45:21]} {[%emt 00:00:08]} d5 {[%clk
00:45:26]} {[%emt 00:00:06]} 4. exd5 {[%clk 00:45:14]} {[%emt 00:00:17]} Qxd5
{[%clk 00:45:30]} {[%emt 00:00:07]} 5. d4 {[%clk 00:45:22]} {[%emt 00:00:02]}
Bg7 {[%clk 00:45:32]} {[%emt 00:00:07]} 6. Be3 {[%clk 00:45:30]} {[%emt
00:00:02]} cxd4 {[%clk 00:45:33]} {[%emt 00:00:10]} 7. cxd4 {[%clk 00:45:39]}
{[%emt 00:00:01]} Nf6 {[%clk 00:45:22]} {[%emt 00:00:20]} 8. Nc3 {[%clk
00:45:47]} {[%emt 00:00:02]} Qa5 {[%clk 00:45:19]} {[%emt 00:00:13]} 9. Be2
{[%clk 00:45:14]} {[%emt 00:00:44]} O-O {[%clk 00:44:43]} {[%emt 00:00:45]} 10.
O-O {[%clk 00:45:19]} {[%emt 00:00:05]} Nc6 {[%clk 00:43:52]} {[%emt 00:01:01]}
11. Qd2 {[%clk 00:45:04]} {[%emt 00:00:26]} Rd8 {[%clk 00:42:30]} {[%emt
00:01:31]} 12. Rfd1 {[%clk 00:44:15]} {[%emt 00:00:59]} Ng4 {[%clk 00:36:33]}
{[%emt 00:06:07]} 13. a3 {[%clk 00:38:50]} {[%emt 00:05:36]} Nxe3 {[%clk
00:29:54]} {[%emt 00:06:49]} 14. fxe3 {[%clk 00:36:04]} {[%emt 00:02:55]} e6
{[%clk 00:26:45]} {[%emt 00:03:19]} 15. b4 {[%clk 00:35:47]} {[%emt 00:00:28]}
Qc7 {[%clk 00:26:23]} {[%emt 00:00:32]} 16. Rac1 {[%clk 00:35:41]} {[%emt
00:00:16]} Qd6 {[%clk 00:24:56]} {[%emt 00:01:36]} 17. Ne4 {[%clk 00:31:03]}
{[%emt 00:04:48]} Qd5 {[%clk 00:20:49]} {[%emt 00:04:17]} 18. Qc2 {[%clk
00:27:51]} {[%emt 00:03:22]} Ne7 {[%clk 00:17:41]} {[%emt 00:03:18]} 19. Bc4
{[%clk 00:25:36]} {[%emt 00:02:24]} Qc6 {[%clk 00:16:55]} {[%emt 00:00:57]} 20.
b5 {[%clk 00:24:19]} {[%emt 00:01:27]} Qb6 {[%clk 00:16:41]} {[%emt 00:00:24]}
21. Qf2 {[%clk 00:24:01]} {[%emt 00:00:28]} Rf8 {[%clk 00:13:29]} {[%emt
00:03:22]} 22. a4 {[%clk 00:20:41]} {[%emt 00:03:30]} Nf5 {[%clk 00:12:12]}
{[%emt 00:01:27]} 23. g4 {[%clk 00:19:45]} {[%emt 00:01:06]} Nd6 {[%clk
00:11:59]} {[%emt 00:00:23]} 24. Nxd6 {[%clk 00:18:02]} {[%emt 00:01:52]} Qxd6
{[%clk 00:12:03]} {[%emt 00:00:08]} 25. Qh4 {[%clk 00:14:50]} {[%emt 00:03:21]}
Qa3 {[%clk 00:11:28]} {[%emt 00:00:45]} 26. Bd3 {[%clk 00:14:06]} {[%emt
00:00:54]} Qxa4 {[%clk 00:10:33]} {[%emt 00:01:05]} 27. Ng5 {[%clk 00:14:00]}
{[%emt 00:00:16]} h6 {[%clk 00:10:27]} {[%emt 00:00:16]} 28. Ne4 {[%clk
00:14:09]} {[%emt 00:00:02]} Bd7 {[%clk 00:06:50]} {[%emt 00:03:47]} 29. Nc5
{[%clk 00:12:53]} {[%emt 00:01:25]} g5 {[%clk 00:03:49]} {[%emt 00:03:11]} 30.
Qf2 {[%clk 00:12:08]} {[%emt 00:00:55]} Qa3 {[%clk 00:03:04]} {[%emt 00:00:56]}
31. Nxd7 {[%clk 00:12:15]} {[%emt 00:00:02]} Rfc8 {[%clk 00:02:42]} {[%emt
00:00:31]} 32. Rxc8+ {[%clk 00:12:23]} {[%emt 00:00:03]} Rxc8 {[%clk 00:02:50]}
{[%emt 00:00:02]} 33. Nf6+ {[%clk 00:12:27]} {[%emt 00:00:05]} Kh8 {[%clk
00:02:24]} {[%emt 00:00:37]} 34. Qf3 {[%clk 00:12:14]} {[%emt 00:00:23]} Rc3
{[%clk 00:01:57]} {[%emt 00:00:36]} 35. Qe4 {[%clk 00:12:16]} {[%emt 00:00:08]}
Rxd3 {[%clk 00:01:14]} {[%emt 00:00:54]} 36. Qh7# {[%clk 00:12:24]} {[%emt
00:00:02]} 1-0

[Event "FIDE U16 Olympiad_boards_1-80"]
[Site "Eindhoven, Netherlands"]
[Date "2023.08.13"]
[Round "1.80"]
[White "Fan, Wen Xi"]
[Black "Karaivanova, Petya"]
[Result "0-1"]
[TimeControl "2700+10"]
[WhiteElo "1281"]
[BlackElo "1680"]

1. e4 {[%clk 00:45:17]} {[%emt 00:00:02]} e5 {[%clk 00:45:19]} {[%emt
00:00:02]} 2. c4 {[%clk 00:45:25]} {[%emt 00:00:02]} Nc6 {[%clk 00:45:21]}
{[%emt 00:00:07]} 3. Nc3 {[%clk 00:45:32]} {[%emt 00:00:04]} Bc5 {[%clk
00:45:27]} {[%emt 00:00:03]} 4. g3 {[%clk 00:45:38]} {[%emt 00:00:03]} d6
{[%clk 00:45:26]} {[%emt 00:00:12]} 5. Bg2 {[%clk 00:45:39]} {[%emt 00:00:09]}
Nge7 {[%clk 00:45:21]} {[%emt 00:00:15]} 6. Nge2 {[%clk 00:45:45]} {[%emt
00:00:04]} O-O {[%clk 00:45:24]} {[%emt 00:00:07]} 7. O-O {[%clk 00:45:50]}
{[%emt 00:00:05]} a5 {[%clk 00:42:04]} {[%emt 00:03:30]} 8. d3 {[%clk
00:45:13]} {[%emt 00:00:46]} f5 {[%clk 00:41:28]} {[%emt 00:00:47]} 9. Kh1
{[%clk 00:42:56]} {[%emt 00:02:27]} Be6 {[%clk 00:37:47]} {[%emt 00:03:51]} 10.
f4 {[%clk 00:40:57]} {[%emt 00:02:09]} Qd7 {[%clk 00:37:33]} {[%emt 00:00:24]}
11. Nd5 {[%clk 00:35:51]} {[%emt 00:05:16]} Ng6 {[%clk 00:28:17]} {[%emt
00:09:26]} 12. Be3 {[%clk 00:26:54]} {[%emt 00:09:05]} Nd4 {[%clk 00:22:30]}
{[%emt 00:05:59]} 13. Ndc3 {[%clk 00:23:57]} {[%emt 00:03:06]} c6 {[%clk
00:17:45]} {[%emt 00:04:56]} 14. Qd2 {[%clk 00:22:27]} {[%emt 00:01:38]} Ba7
{[%clk 00:13:57]} {[%emt 00:04:00]} 15. Rab1 {[%clk 00:14:02]} {[%emt
00:08:35]} fxe4 {[%clk 00:11:32]} {[%emt 00:02:35]} 16. Bxe4 {[%clk 00:13:02]}
{[%emt 00:01:09]} Bh3 {[%clk 00:10:12]} {[%emt 00:01:31]} 17. Bg2 {[%clk
00:12:54]} {[%emt 00:00:18]} Bxg2+ {[%clk 00:08:00]} {[%emt 00:02:22]} 18. Kxg2
{[%clk 00:13:00]} {[%emt 00:00:04]} Qg4 {[%clk 00:06:50]} {[%emt 00:01:20]} 19.
Bxd4 {[%clk 00:04:04]} {[%emt 00:09:06]} exd4 {[%clk 00:06:50]} {[%emt
00:00:10]} 20. Nd1 {[%clk 00:03:16]} {[%emt 00:00:57]} Nh4+ {[%clk 00:05:57]}
{[%emt 00:01:06]} 21. Kh1 {[%clk 00:03:09]} {[%emt 00:00:15]} Nf3 {[%clk
00:05:29]} {[%emt 00:00:39]} 22. Qc2 {[%clk 00:02:46]} {[%emt 00:00:30]} Rae8
{[%clk 00:04:26]} {[%emt 00:01:15]} 23. Rf2 {[%clk 00:01:53]} {[%emt 00:01:03]}
Ng5 {[%clk 00:03:20]} {[%emt 00:01:17]} 24. Ng1 {[%clk 00:00:26]} {[%emt
00:01:36]} Nh3 {[%clk 00:02:47]} {[%emt 00:00:43]} 25. Nxh3 {[%clk 00:00:32]}
{[%emt 00:00:04]} Qxh3 {[%clk 00:02:54]} {[%emt 00:00:03]} 26. Rg2 {[%clk
00:00:30]} {[%emt 00:00:11]} Re1+ {[%clk 00:00:22]} {[%emt 00:02:44]} 27. Rg1
{[%clk 00:00:36]} {[%emt 00:00:03]} Qe6 {[%clk 00:00:26]} {[%emt 00:00:06]} 28.
Rxe1 {[%clk 00:00:17]} {[%emt 00:00:30]} Qxe1+ {[%clk 00:00:34]} {[%emt
00:00:02]} 29. Kg2 {[%clk 00:00:26]} Re8 {[%clk 00:00:33]} {[%emt 00:00:11]} 30.
Nf2 {[%clk 00:00:31]} {[%emt 00:00:05]} Qe6 {[%clk 00:00:29]} {[%emt 00:00:14]}
31. b3 {[%clk 00:00:22]} {[%emt 00:00:18]} d5 {[%clk 00:00:24]} {[%emt
00:00:16]} 0-1